Workbook

Sheet Zapisnik o prijeđenim kilometri
B1: ZAPISNIK O PRIJEĐENIM KILOMETRIMA
C11: KILOMETRI ZA | E11: UKUPNI IZNOS
C12: POVRAT | E12: POVRATA
C17: 2012-05-01 | E17: 2012-05-10
C19: RAZDOBLJE | E19: RAZDOBLJE
C20: POČETAK | E20: KRAJ
C26: 54 | E26: 9,800
C28: POVRATA | E28: PRETHODNO STANJE GORIVA
C29: lp/milja | E29: NA BROJAČU

Sheet Podaci za zapisnik
B1: ZAPISNIK O PRIJEĐENIM KILOMETRIMA
B5: DATUM | C5: AKTIVNOST | D5: BROJAČ 1 | E5: MJESTO | F5: BROJAČ 2 | G5: ODREDIŠTE | H5: POVRAT | I5: LITRE | J5: CIJENA | K5: KILOMETRI | L5: POTROŠNJA PO KILOMETRU | M5: lp/MILJA | N5: NAPOMENE
B6: 2012-05-01 | C6: Put | D6: 10,123 | E6: Chevron – Main St | F6: 10,130 | I6: 15.56 | J6: 64.11 kn | K6: =milje -> 7 | L6: =IF(OR(LEN(podaci[[#This Row],[BROJAČ 2]]),podaci[[#This Row],[BROJAČ 1]]=""),"",IFERROR(podaci[[#This Row],[KILOMETRI]]/podaci[[#This Row],[LITRE]],"")) ->  | M6: =IF(podaci[[#This Row],[POTROŠNJA PO KILOMETRU]]="","",100*podaci[[#This Row],[CIJENA]]/podaci[[#This Row],[KILOMETRI]]) -> 
B7: 2012-05-01 | C7: Put | D7: 10,130 | E7: Ured | F7: 10,200 | G7: Ulica trešanja | H7: Da | K7: =milje -> 70 | L7: =IF(OR(LEN(podaci[[#This Row],[BROJAČ 2]]),podaci[[#This Row],[BROJAČ 1]]=""),"",IFERROR(podaci[[#This Row],[KILOMETRI]]/podaci[[#This Row],[LITRE]],"")) ->  | M7: =IF(podaci[[#This Row],[POTROŠNJA PO KILOMETRU]]="","",100*podaci[[#This Row],[CIJENA]]/podaci[[#This Row],[KILOMETRI]]) -> 
B8: 2012-05-01 | C8: Put | D8: 10,200 | E8: Smithfields | F8: 10,285 | G8: Ured | H8: Da | K8: =milje -> 85 | L8: =IF(OR(LEN(podaci[[#This Row],[BROJAČ 2]]),podaci[[#This Row],[BROJAČ 1]]=""),"",IFERROR(podaci[[#This Row],[KILOMETRI]]/podaci[[#This Row],[LITRE]],"")) ->  | M8: =IF(podaci[[#This Row],[POTROŠNJA PO KILOMETRU]]="","",100*podaci[[#This Row],[CIJENA]]/podaci[[#This Row],[KILOMETRI]]) -> 
B9: 2012-05-02 | C9: Put | D9: 10,285 | E9: Ured | F9: 10,450 | G9: Vinograd Colo | H9: Da | K9: =milje -> 165 | L9: =IF(OR(LEN(podaci[[#This Row],[BROJAČ 2]]),podaci[[#This Row],[BROJAČ 1]]=""),"",IFERROR(podaci[[#This Row],[KILOMETRI]]/podaci[[#This Row],[LITRE]],"")) ->  | M9: =IF(podaci[[#This Row],[POTROŠNJA PO KILOMETRU]]="","",100*podaci[[#This Row],[CIJENA]]/podaci[[#This Row],[KILOMETRI]]) -> 
B10: 2012-05-02 | C10: Gorivo | D10: 10,450 | E10: Shell | I10: 11.20 | J10: 55.42 kn | K10: =milje -> 650 | L10: =IF(OR(LEN(podaci[[#This Row],[BROJAČ 2]]),podaci[[#This Row],[BROJAČ 1]]=""),"",IFERROR(podaci[[#This Row],[KILOMETRI]]/podaci[[#This Row],[LITRE]],"")) -> 58.0 | M10: =IF(podaci[[#This Row],[POTROŠNJA PO KILOMETRU]]="","",100*podaci[[#This Row],[CIJENA]]/podaci[[#This Row],[KILOMETRI]]) -> 8.5
B11: 2012-05-02 | C11: Put | D11: 10,500 | E11: Vinograd Colo | F11: 10,518 | G11: Ured | H11: Da | K11: =milje -> 18 | L11: =IF(OR(LEN(podaci[[#This Row],[BROJAČ 2]]),podaci[[#This Row],[BROJAČ 1]]=""),"",IFERROR(podaci[[#This Row],[KILOMETRI]]/podaci[[#This Row],[LITRE]],"")) ->  | M11: =IF(podaci[[#This Row],[POTROŠNJA PO KILOMETRU]]="","",100*podaci[[#This Row],[CIJENA]]/podaci[[#This Row],[KILOMETRI]]) -> 
B12: 2012-05-03 | C12: Put | D12: 10,518 | E12: Ured | F12: 10,745 | G12: Ured | H12: Da | K12: =milje -> 227 | L12: =IF(OR(LEN(podaci[[#This Row],[BROJAČ 2]]),podaci[[#This Row],[BROJAČ 1]]=""),"",IFERROR(podaci[[#This Row],[KILOMETRI]]/podaci[[#This Row],[LITRE]],"")) ->  | M12: =IF(podaci[[#This Row],[POTROŠNJA PO KILOMETRU]]="","",100*podaci[[#This Row],[CIJENA]]/podaci[[#This Row],[KILOMETRI]]) -> 
B13: 2012-05-04 | C13: Gorivo | D13: 10,745 | E13: Chevron – Main St | I13: 16.60 | J13: 69.24 kn | K13: =milje -> 295 | L13: =IF(OR(LEN(podaci[[#This Row],[BROJAČ 2]]),podaci[[#This Row],[BROJAČ 1]]=""),"",IFERROR(podaci[[#This Row],[KILOMETRI]]/podaci[[#This Row],[LITRE]],"")) -> 17.8 | M13: =IF(podaci[[#This Row],[POTROŠNJA PO KILOMETRU]]="","",100*podaci[[#This Row],[CIJENA]]/podaci[[#This Row],[KILOMETRI]]) -> 23.5
B14: 2012-05-04 | C14: Put | D14: 10,745 | E14: Ured | F14: 10,800 | G14: Porterville | H14: Da | K14: =milje -> 55 | L14: =IF(OR(LEN(podaci[[#This Row],[BROJAČ 2]]),podaci[[#This Row],[BROJAČ 1]]=""),"",IFERROR(podaci[[#This Row],[KILOMETRI]]/podaci[[#This Row],[LITRE]],"")) ->  | M14: =IF(podaci[[#This Row],[POTROŠNJA PO KILOMETRU]]="","",100*podaci[[#This Row],[CIJENA]]/podaci[[#This Row],[KILOMETRI]]) -> 
B15: 2012-05-04 | C15: Put | D15: 10,800 | E15: Porterville | F15: 10,875 | G15: Ured | H15: Da | K15: =milje -> 75 | L15: =IF(OR(LEN(podaci[[#This Row],[BROJAČ 2]]),podaci[[#This Row],[BROJAČ 1]]=""),"",IFERROR(podaci[[#This Row],[KILOMETRI]]/podaci[[#This Row],[LITRE]],"")) ->  | M15: =IF(podaci[[#This Row],[POTROŠNJA PO KILOMETRU]]="","",100*podaci[[#This Row],[CIJENA]]/podaci[[#This Row],[KILOMETRI]]) -> 
B16: 2012-05-07 | C16: Put | D16: 10,875 | E16: Ured | F16: 10,921 | G16: Ulica trešanja | H16: Da | K16: =milje -> 46 | L16: =IF(OR(LEN(podaci[[#This Row],[BROJAČ 2]]),podaci[[#This Row],[BROJAČ 1]]=""),"",IFERROR(podaci[[#This Row],[KILOMETRI]]/podaci[[#This Row],[LITRE]],"")) ->  | M16: =IF(podaci[[#This Row],[POTROŠNJA PO KILOMETRU]]="","",100*podaci[[#This Row],[CIJENA]]/podaci[[#This Row],[KILOMETRI]]) -> 
B17: 2012-05-07 | C17: Put | D17: 10,921 | E17: Smithfields | F17: 10,969 | G17: Ured | H17: Da | K17: =milje -> 48 | L17: =IF(OR(LEN(podaci[[#This Row],[BROJAČ 2]]),podaci[[#This Row],[BROJAČ 1]]=""),"",IFERROR(podaci[[#This Row],[KILOMETRI]]/podaci[[#This Row],[LITRE]],"")) ->  | M17: =IF(podaci[[#This Row],[POTROŠNJA PO KILOMETRU]]="","",100*podaci[[#This Row],[CIJENA]]/podaci[[#This Row],[KILOMETRI]]) -> 
B18: 2012-05-09 | C18: Put | D18: 10,969 | E18: Ured | F18: 11,000 | G18: Riverside | H18: Da | K18: =milje -> 31 | L18: =IF(OR(LEN(podaci[[#This Row],[BROJAČ 2]]),podaci[[#This Row],[BROJAČ 1]]=""),"",IFERROR(podaci[[#This Row],[KILOMETRI]]/podaci[[#This Row],[LITRE]],"")) ->  | M18: =IF(podaci[[#This Row],[POTROŠNJA PO KILOMETRU]]="","",100*podaci[[#This Row],[CIJENA]]/podaci[[#This Row],[KILOMETRI]]) -> 
B19: 2012-05-09 | C19: Put | D19: 11,000 | E19: Riverside | F19: 11,100 | G19: Kuća | H19: Ne | K19: =milje -> 100 | L19: =IF(OR(LEN(podaci[[#This Row],[BROJAČ 2]]),podaci[[#This Row],[BROJAČ 1]]=""),"",IFERROR(podaci[[#This Row],[KILOMETRI]]/podaci[[#This Row],[LITRE]],"")) ->  | M19: =IF(podaci[[#This Row],[POTROŠNJA PO KILOMETRU]]="","",100*podaci[[#This Row],[CIJENA]]/podaci[[#This Row],[KILOMETRI]]) -> 

Sheet izračuni (hidden)
A1: *** Ovaj list mora ostati sakriven ***
I6: =OFFSET(I9,,drugaOsovina="Cijena goriva") -> lp/milja
M7: 2
H8: Put | I8: Gorivo | J8: Gorivo | L8: Druga os: | M8: =REPT("Potrošnja po kilometru",M7=1)&REPT("Cijena goriva",M7=2) -> Cijena goriva
H9: Prijeđeni kilometri | I9: Potrošnja po kilometru | J9: lp/milja
C10: Kilometri za povrat: | D10: =SUMIFS(podaci[KILOMETRI],podaci[POVRAT],"Da",podaci[DATUM],">="&razdobljePočetak,podaci[DATUM],"<="&razdobljeKraj) -> 820 | F10: 1 | G10: =razdobljePočetak -> 2012-05-01 | H10: =SUMIFS(podaci[KILOMETRI],podaci[DATUM],G10,podaci[AKTIVNOST],$H$8) -> 162 | I10: =IFERROR(AVERAGEIFS(podaci[POTROŠNJA PO KILOMETRU],podaci[DATUM],G10,podaci[AKTIVNOST],$I$8),NA()) ->  | J10: =IFERROR(AVERAGEIFS(podaci[lp/MILJA],podaci[DATUM],G10,podaci[AKTIVNOST],$J$8),NA()) -> 
C11: Ukupni iznos povrata: | D11: =D10*PovratPoMilji/100 -> 442.80 kn | F11: 2 | G11: =G10+1 -> 2012-05-02 | H11: =SUMIFS(podaci[KILOMETRI],podaci[DATUM],G11,podaci[AKTIVNOST],$H$8) -> 183 | I11: =IFERROR(AVERAGEIFS(podaci[POTROŠNJA PO KILOMETRU],podaci[DATUM],G11,podaci[AKTIVNOST],$I$8),NA()) -> 58.0 | J11: =IFERROR(AVERAGEIFS(podaci[lp/MILJA],podaci[DATUM],G11,podaci[AKTIVNOST],$J$8),NA()) -> 8.5
F12: 3 | G12: 2012-05-03 | H12: =SUMIFS(podaci[KILOMETRI],podaci[DATUM],G12,podaci[AKTIVNOST],$H$8) -> 227 | I12: =IFERROR(AVERAGEIFS(podaci[POTROŠNJA PO KILOMETRU],podaci[DATUM],G12,podaci[AKTIVNOST],$I$8),NA()) ->  | J12: =IFERROR(AVERAGEIFS(podaci[lp/MILJA],podaci[DATUM],G12,podaci[AKTIVNOST],$J$8),NA()) -> 
F13: 4 | G13: 2012-05-04 | H13: =SUMIFS(podaci[KILOMETRI],podaci[DATUM],G13,podaci[AKTIVNOST],$H$8) -> 130 | I13: =IFERROR(AVERAGEIFS(podaci[POTROŠNJA PO KILOMETRU],podaci[DATUM],G13,podaci[AKTIVNOST],$I$8),NA()) -> 17.8 | J13: =IFERROR(AVERAGEIFS(podaci[lp/MILJA],podaci[DATUM],G13,podaci[AKTIVNOST],$J$8),NA()) -> 23.5
F14: 5 | G14: 2012-05-05 | H14: =SUMIFS(podaci[KILOMETRI],podaci[DATUM],G14,podaci[AKTIVNOST],$H$8) -> 0 | I14: =IFERROR(AVERAGEIFS(podaci[POTROŠNJA PO KILOMETRU],podaci[DATUM],G14,podaci[AKTIVNOST],$I$8),NA()) ->  | J14: =IFERROR(AVERAGEIFS(podaci[lp/MILJA],podaci[DATUM],G14,podaci[AKTIVNOST],$J$8),NA()) -> 
F15: 6 | G15: 2012-05-06 | H15: =SUMIFS(podaci[KILOMETRI],podaci[DATUM],G15,podaci[AKTIVNOST],$H$8) -> 0 | I15: =IFERROR(AVERAGEIFS(podaci[POTROŠNJA PO KILOMETRU],podaci[DATUM],G15,podaci[AKTIVNOST],$I$8),NA()) ->  | J15: =IFERROR(AVERAGEIFS(podaci[lp/MILJA],podaci[DATUM],G15,podaci[AKTIVNOST],$J$8),NA()) -> 
F16: 7 | G16: 2012-05-07 | H16: =SUMIFS(podaci[KILOMETRI],podaci[DATUM],G16,podaci[AKTIVNOST],$H$8) -> 94 | I16: =IFERROR(AVERAGEIFS(podaci[POTROŠNJA PO KILOMETRU],podaci[DATUM],G16,podaci[AKTIVNOST],$I$8),NA()) ->  | J16: =IFERROR(AVERAGEIFS(podaci[lp/MILJA],podaci[DATUM],G16,podaci[AKTIVNOST],$J$8),NA()) -> 
F17: 8 | G17: 2012-05-08 | H17: =SUMIFS(podaci[KILOMETRI],podaci[DATUM],G17,podaci[AKTIVNOST],$H$8) -> 0 | I17: =IFERROR(AVERAGEIFS(podaci[POTROŠNJA PO KILOMETRU],podaci[DATUM],G17,podaci[AKTIVNOST],$I$8),NA()) ->  | J17: =IFERROR(AVERAGEIFS(podaci[lp/MILJA],podaci[DATUM],G17,podaci[AKTIVNOST],$J$8),NA()) -> 
F18: 9 | G18: 2012-05-09 | H18: =SUMIFS(podaci[KILOMETRI],podaci[DATUM],G18,podaci[AKTIVNOST],$H$8) -> 131 | I18: =IFERROR(AVERAGEIFS(podaci[POTROŠNJA PO KILOMETRU],podaci[DATUM],G18,podaci[AKTIVNOST],$I$8),NA()) ->  | J18: =IFERROR(AVERAGEIFS(podaci[lp/MILJA],podaci[DATUM],G18,podaci[AKTIVNOST],$J$8),NA()) -> 
F19: 10 | G19: 2012-05-10 | H19: =SUMIFS(podaci[KILOMETRI],podaci[DATUM],G19,podaci[AKTIVNOST],$H$8) -> 0 | I19: =IFERROR(AVERAGEIFS(podaci[POTROŠNJA PO KILOMETRU],podaci[DATUM],G19,podaci[AKTIVNOST],$I$8),NA()) ->  | J19: =IFERROR(AVERAGEIFS(podaci[lp/MILJA],podaci[DATUM],G19,podaci[AKTIVNOST],$J$8),NA()) -> 
F20: 11 | G20: 2012-05-11 | H20: =SUMIFS(podaci[KILOMETRI],podaci[DATUM],G20,podaci[AKTIVNOST],$H$8) -> 0 | I20: =IFERROR(AVERAGEIFS(podaci[POTROŠNJA PO KILOMETRU],podaci[DATUM],G20,podaci[AKTIVNOST],$I$8),NA()) ->  | J20: =IFERROR(AVERAGEIFS(podaci[lp/MILJA],podaci[DATUM],G20,podaci[AKTIVNOST],$J$8),NA()) -> 
F21: 12 | G21: 2012-05-12 | H21: =SUMIFS(podaci[KILOMETRI],podaci[DATUM],G21,podaci[AKTIVNOST],$H$8) -> 0 | I21: =IFERROR(AVERAGEIFS(podaci[POTROŠNJA PO KILOMETRU],podaci[DATUM],G21,podaci[AKTIVNOST],$I$8),NA()) ->  | J21: =IFERROR(AVERAGEIFS(podaci[lp/MILJA],podaci[DATUM],G21,podaci[AKTIVNOST],$J$8),NA()) -> 
F22: 13 | G22: 2012-05-13 | H22: =SUMIFS(podaci[KILOMETRI],podaci[DATUM],G22,podaci[AKTIVNOST],$H$8) -> 0 | I22: =IFERROR(AVERAGEIFS(podaci[POTROŠNJA PO KILOMETRU],podaci[DATUM],G22,podaci[AKTIVNOST],$I$8),NA()) ->  | J22: =IFERROR(AVERAGEIFS(podaci[lp/MILJA],podaci[DATUM],G22,podaci[AKTIVNOST],$J$8),NA()) -> 
F23: 14 | G23: 2012-05-14 | H23: =SUMIFS(podaci[KILOMETRI],podaci[DATUM],G23,podaci[AKTIVNOST],$H$8) -> 0 | I23: =IFERROR(AVERAGEIFS(podaci[POTROŠNJA PO KILOMETRU],podaci[DATUM],G23,podaci[AKTIVNOST],$I$8),NA()) ->  | J23: =IFERROR(AVERAGEIFS(podaci[lp/MILJA],podaci[DATUM],G23,podaci[AKTIVNOST],$J$8),NA()) -> 
F24: 15 | G24: 2012-05-15 | H24: =SUMIFS(podaci[KILOMETRI],podaci[DATUM],G24,podaci[AKTIVNOST],$H$8) -> 0 | I24: =IFERROR(AVERAGEIFS(podaci[POTROŠNJA PO KILOMETRU],podaci[DATUM],G24,podaci[AKTIVNOST],$I$8),NA()) ->  | J24: =IFERROR(AVERAGEIFS(podaci[lp/MILJA],podaci[DATUM],G24,podaci[AKTIVNOST],$J$8),NA()) -> 
F25: 16 | G25: 2012-05-16 | H25: =SUMIFS(podaci[KILOMETRI],podaci[DATUM],G25,podaci[AKTIVNOST],$H$8) -> 0 | I25: =IFERROR(AVERAGEIFS(podaci[POTROŠNJA PO KILOMETRU],podaci[DATUM],G25,podaci[AKTIVNOST],$I$8),NA()) ->  | J25: =IFERROR(AVERAGEIFS(podaci[lp/MILJA],podaci[DATUM],G25,podaci[AKTIVNOST],$J$8),NA()) -> 
F26: 17 | G26: 2012-05-17 | H26: =SUMIFS(podaci[KILOMETRI],podaci[DATUM],G26,podaci[AKTIVNOST],$H$8) -> 0 | I26: =IFERROR(AVERAGEIFS(podaci[POTROŠNJA PO KILOMETRU],podaci[DATUM],G26,podaci[AKTIVNOST],$I$8),NA()) ->  | J26: =IFERROR(AVERAGEIFS(podaci[lp/MILJA],podaci[DATUM],G26,podaci[AKTIVNOST],$J$8),NA()) -> 
F27: 18 | G27: 2012-05-18 | H27: =SUMIFS(podaci[KILOMETRI],podaci[DATUM],G27,podaci[AKTIVNOST],$H$8) -> 0 | I27: =IFERROR(AVERAGEIFS(podaci[POTROŠNJA PO KILOMETRU],podaci[DATUM],G27,podaci[AKTIVNOST],$I$8),NA()) ->  | J27: =IFERROR(AVERAGEIFS(podaci[lp/MILJA],podaci[DATUM],G27,podaci[AKTIVNOST],$J$8),NA()) -> 
F28: 19 | G28: 2012-05-19 | H28: =SUMIFS(podaci[KILOMETRI],podaci[DATUM],G28,podaci[AKTIVNOST],$H$8) -> 0 | I28: =IFERROR(AVERAGEIFS(podaci[POTROŠNJA PO KILOMETRU],podaci[DATUM],G28,podaci[AKTIVNOST],$I$8),NA()) ->  | J28: =IFERROR(AVERAGEIFS(podaci[lp/MILJA],podaci[DATUM],G28,podaci[AKTIVNOST],$J$8),NA()) -> 
F29: 20 | G29: 2012-05-20 | H29: =SUMIFS(podaci[KILOMETRI],podaci[DATUM],G29,podaci[AKTIVNOST],$H$8) -> 0 | I29: =IFERROR(AVERAGEIFS(podaci[POTROŠNJA PO KILOMETRU],podaci[DATUM],G29,podaci[AKTIVNOST],$I$8),NA()) ->  | J29: =IFERROR(AVERAGEIFS(podaci[lp/MILJA],podaci[DATUM],G29,podaci[AKTIVNOST],$J$8),NA()) -> 
F30: 21 | G30: 2012-05-21 | H30: =SUMIFS(podaci[KILOMETRI],podaci[DATUM],G30,podaci[AKTIVNOST],$H$8) -> 0 | I30: =IFERROR(AVERAGEIFS(podaci[POTROŠNJA PO KILOMETRU],podaci[DATUM],G30,podaci[AKTIVNOST],$I$8),NA()) ->  | J30: =IFERROR(AVERAGEIFS(podaci[lp/MILJA],podaci[DATUM],G30,podaci[AKTIVNOST],$J$8),NA()) -> 
F31: 22 | G31: 2012-05-22 | H31: =SUMIFS(podaci[KILOMETRI],podaci[DATUM],G31,podaci[AKTIVNOST],$H$8) -> 0 | I31: =IFERROR(AVERAGEIFS(podaci[POTROŠNJA PO KILOMETRU],podaci[DATUM],G31,podaci[AKTIVNOST],$I$8),NA()) ->  | J31: =IFERROR(AVERAGEIFS(podaci[lp/MILJA],podaci[DATUM],G31,podaci[AKTIVNOST],$J$8),NA()) -> 
F32: 23 | G32: 2012-05-23 | H32: =SUMIFS(podaci[KILOMETRI],podaci[DATUM],G32,podaci[AKTIVNOST],$H$8) -> 0 | I32: =IFERROR(AVERAGEIFS(podaci[POTROŠNJA PO KILOMETRU],podaci[DATUM],G32,podaci[AKTIVNOST],$I$8),NA()) ->  | J32: =IFERROR(AVERAGEIFS(podaci[lp/MILJA],podaci[DATUM],G32,podaci[AKTIVNOST],$J$8),NA()) -> 
F33: 24 | G33: 2012-05-24 | H33: =SUMIFS(podaci[KILOMETRI],podaci[DATUM],G33,podaci[AKTIVNOST],$H$8) -> 0 | I33: =IFERROR(AVERAGEIFS(podaci[POTROŠNJA PO KILOMETRU],podaci[DATUM],G33,podaci[AKTIVNOST],$I$8),NA()) ->  | J33: =IFERROR(AVERAGEIFS(podaci[lp/MILJA],podaci[DATUM],G33,podaci[AKTIVNOST],$J$8),NA()) -> 
F34: 25 | G34: 2012-05-25 | H34: =SUMIFS(podaci[KILOMETRI],podaci[DATUM],G34,podaci[AKTIVNOST],$H$8) -> 0 | I34: =IFERROR(AVERAGEIFS(podaci[POTROŠNJA PO KILOMETRU],podaci[DATUM],G34,podaci[AKTIVNOST],$I$8),NA()) ->  | J34: =IFERROR(AVERAGEIFS(podaci[lp/MILJA],podaci[DATUM],G34,podaci[AKTIVNOST],$J$8),NA()) -> 
F35: 26 | G35: 2012-05-26 | H35: =SUMIFS(podaci[KILOMETRI],podaci[DATUM],G35,podaci[AKTIVNOST],$H$8) -> 0 | I35: =IFERROR(AVERAGEIFS(podaci[POTROŠNJA PO KILOMETRU],podaci[DATUM],G35,podaci[AKTIVNOST],$I$8),NA()) ->  | J35: =IFERROR(AVERAGEIFS(podaci[lp/MILJA],podaci[DATUM],G35,podaci[AKTIVNOST],$J$8),NA()) -> 
F36: 27 | G36: 2012-05-27 | H36: =SUMIFS(podaci[KILOMETRI],podaci[DATUM],G36,podaci[AKTIVNOST],$H$8) -> 0 | I36: =IFERROR(AVERAGEIFS(podaci[POTROŠNJA PO KILOMETRU],podaci[DATUM],G36,podaci[AKTIVNOST],$I$8),NA()) ->  | J36: =IFERROR(AVERAGEIFS(podaci[lp/MILJA],podaci[DATUM],G36,podaci[AKTIVNOST],$J$8),NA()) -> 
F37: 28 | G37: 2012-05-28 | H37: =SUMIFS(podaci[KILOMETRI],podaci[DATUM],G37,podaci[AKTIVNOST],$H$8) -> 0 | I37: =IFERROR(AVERAGEIFS(podaci[POTROŠNJA PO KILOMETRU],podaci[DATUM],G37,podaci[AKTIVNOST],$I$8),NA()) ->  | J37: =IFERROR(AVERAGEIFS(podaci[lp/MILJA],podaci[DATUM],G37,podaci[AKTIVNOST],$J$8),NA()) -> 
F38: 29 | G38: 2012-05-29 | H38: =SUMIFS(podaci[KILOMETRI],podaci[DATUM],G38,podaci[AKTIVNOST],$H$8) -> 0 | I38: =IFERROR(AVERAGEIFS(podaci[POTROŠNJA PO KILOMETRU],podaci[DATUM],G38,podaci[AKTIVNOST],$I$8),NA()) ->  | J38: =IFERROR(AVERAGEIFS(podaci[lp/MILJA],podaci[DATUM],G38,podaci[AKTIVNOST],$J$8),NA()) -> 
F39: 30 | G39: 2012-05-30 | H39: =SUMIFS(podaci[KILOMETRI],podaci[DATUM],G39,podaci[AKTIVNOST],$H$8) -> 0 | I39: =IFERROR(AVERAGEIFS(podaci[POTROŠNJA PO KILOMETRU],podaci[DATUM],G39,podaci[AKTIVNOST],$I$8),NA()) ->  | J39: =IFERROR(AVERAGEIFS(podaci[lp/MILJA],podaci[DATUM],G39,podaci[AKTIVNOST],$J$8),NA()) -> 
F40: 31 | G40: 2012-05-31 | H40: =SUMIFS(podaci[KILOMETRI],podaci[DATUM],G40,podaci[AKTIVNOST],$H$8) -> 0 | I40: =IFERROR(AVERAGEIFS(podaci[POTROŠNJA PO KILOMETRU],podaci[DATUM],G40,podaci[AKTIVNOST],$I$8),NA()) ->  | J40: =IFERROR(AVERAGEIFS(podaci[lp/MILJA],podaci[DATUM],G40,podaci[AKTIVNOST],$J$8),NA()) -> 
F41: 32 | G41: 2012-06-01 | H41: =SUMIFS(podaci[KILOMETRI],podaci[DATUM],G41,podaci[AKTIVNOST],$H$8) -> 0 | I41: =IFERROR(AVERAGEIFS(podaci[POTROŠNJA PO KILOMETRU],podaci[DATUM],G41,podaci[AKTIVNOST],$I$8),NA()) ->  | J41: =IFERROR(AVERAGEIFS(podaci[lp/MILJA],podaci[DATUM],G41,podaci[AKTIVNOST],$J$8),NA()) -> 
F42: 33 | G42: 2012-06-02 | H42: =SUMIFS(podaci[KILOMETRI],podaci[DATUM],G42,podaci[AKTIVNOST],$H$8) -> 0 | I42: =IFERROR(AVERAGEIFS(podaci[POTROŠNJA PO KILOMETRU],podaci[DATUM],G42,podaci[AKTIVNOST],$I$8),NA()) ->  | J42: =IFERROR(AVERAGEIFS(podaci[lp/MILJA],podaci[DATUM],G42,podaci[AKTIVNOST],$J$8),NA()) -> 
F43: 34 | G43: =G42+1 -> 2012-06-03 | H43: =SUMIFS(podaci[KILOMETRI],podaci[DATUM],G43,podaci[AKTIVNOST],$H$8) -> 0 | I43: =IFERROR(AVERAGEIFS(podaci[POTROŠNJA PO KILOMETRU],podaci[DATUM],G43,podaci[AKTIVNOST],$I$8),NA()) ->  | J43: =IFERROR(AVERAGEIFS(podaci[lp/MILJA],podaci[DATUM],G43,podaci[AKTIVNOST],$J$8),NA()) -> 
F44: 35 | G44: 2012-06-04 | H44: =SUMIFS(podaci[KILOMETRI],podaci[DATUM],G44,podaci[AKTIVNOST],$H$8) -> 0 | I44: =IFERROR(AVERAGEIFS(podaci[POTROŠNJA PO KILOMETRU],podaci[DATUM],G44,podaci[AKTIVNOST],$I$8),NA()) ->  | J44: =IFERROR(AVERAGEIFS(podaci[lp/MILJA],podaci[DATUM],G44,podaci[AKTIVNOST],$J$8),NA()) -> 
F45: 36 | G45: 2012-06-05 | H45: =SUMIFS(podaci[KILOMETRI],podaci[DATUM],G45,podaci[AKTIVNOST],$H$8) -> 0 | I45: =IFERROR(AVERAGEIFS(podaci[POTROŠNJA PO KILOMETRU],podaci[DATUM],G45,podaci[AKTIVNOST],$I$8),NA()) ->  | J45: =IFERROR(AVERAGEIFS(podaci[lp/MILJA],podaci[DATUM],G45,podaci[AKTIVNOST],$J$8),NA()) -> 
F46: 37 | G46: 2012-06-06 | H46: =SUMIFS(podaci[KILOMETRI],podaci[DATUM],G46,podaci[AKTIVNOST],$H$8) -> 0 | I46: =IFERROR(AVERAGEIFS(podaci[POTROŠNJA PO KILOMETRU],podaci[DATUM],G46,podaci[AKTIVNOST],$I$8),NA()) ->  | J46: =IFERROR(AVERAGEIFS(podaci[lp/MILJA],podaci[DATUM],G46,podaci[AKTIVNOST],$J$8),NA()) -> 
F47: 38 | G47: 2012-06-07 | H47: =SUMIFS(podaci[KILOMETRI],podaci[DATUM],G47,podaci[AKTIVNOST],$H$8) -> 0 | I47: =IFERROR(AVERAGEIFS(podaci[POTROŠNJA PO KILOMETRU],podaci[DATUM],G47,podaci[AKTIVNOST],$I$8),NA()) ->  | J47: =IFERROR(AVERAGEIFS(podaci[lp/MILJA],podaci[DATUM],G47,podaci[AKTIVNOST],$J$8),NA()) -> 
F48: 39 | G48: 2012-06-08 | H48: =SUMIFS(podaci[KILOMETRI],podaci[DATUM],G48,podaci[AKTIVNOST],$H$8) -> 0 | I48: =IFERROR(AVERAGEIFS(podaci[POTROŠNJA PO KILOMETRU],podaci[DATUM],G48,podaci[AKTIVNOST],$I$8),NA()) ->  | J48: =IFERROR(AVERAGEIFS(podaci[lp/MILJA],podaci[DATUM],G48,podaci[AKTIVNOST],$J$8),NA()) -> 
F49: 40 | G49: 2012-06-09 | H49: =SUMIFS(podaci[KILOMETRI],podaci[DATUM],G49,podaci[AKTIVNOST],$H$8) -> 0 | I49: =IFERROR(AVERAGEIFS(podaci[POTROŠNJA PO KILOMETRU],podaci[DATUM],G49,podaci[AKTIVNOST],$I$8),NA()) ->  | J49: =IFERROR(AVERAGEIFS(podaci[lp/MILJA],podaci[DATUM],G49,podaci[AKTIVNOST],$J$8),NA()) -> 
F50: 41 | G50: 2012-06-10 | H50: =SUMIFS(podaci[KILOMETRI],podaci[DATUM],G50,podaci[AKTIVNOST],$H$8) -> 0 | I50: =IFERROR(AVERAGEIFS(podaci[POTROŠNJA PO KILOMETRU],podaci[DATUM],G50,podaci[AKTIVNOST],$I$8),NA()) ->  | J50: =IFERROR(AVERAGEIFS(podaci[lp/MILJA],podaci[DATUM],G50,podaci[AKTIVNOST],$J$8),NA()) -> 
F51: 42 | G51: 2012-06-11 | H51: =SUMIFS(podaci[KILOMETRI],podaci[DATUM],G51,podaci[AKTIVNOST],$H$8) -> 0 | I51: =IFERROR(AVERAGEIFS(podaci[POTROŠNJA PO KILOMETRU],podaci[DATUM],G51,podaci[AKTIVNOST],$I$8),NA()) ->  | J51: =IFERROR(AVERAGEIFS(podaci[lp/MILJA],podaci[DATUM],G51,podaci[AKTIVNOST],$J$8),NA()) -> 
F52: 43 | G52: 2012-06-12 | H52: =SUMIFS(podaci[KILOMETRI],podaci[DATUM],G52,podaci[AKTIVNOST],$H$8) -> 0 | I52: =IFERROR(AVERAGEIFS(podaci[POTROŠNJA PO KILOMETRU],podaci[DATUM],G52,podaci[AKTIVNOST],$I$8),NA()) ->  | J52: =IFERROR(AVERAGEIFS(podaci[lp/MILJA],podaci[DATUM],G52,podaci[AKTIVNOST],$J$8),NA()) -> 
F53: 44 | G53: 2012-06-13 | H53: =SUMIFS(podaci[KILOMETRI],podaci[DATUM],G53,podaci[AKTIVNOST],$H$8) -> 0 | I53: =IFERROR(AVERAGEIFS(podaci[POTROŠNJA PO KILOMETRU],podaci[DATUM],G53,podaci[AKTIVNOST],$I$8),NA()) ->  | J53: =IFERROR(AVERAGEIFS(podaci[lp/MILJA],podaci[DATUM],G53,podaci[AKTIVNOST],$J$8),NA()) -> 
F54: 45 | G54: 2012-06-14 | H54: =SUMIFS(podaci[KILOMETRI],podaci[DATUM],G54,podaci[AKTIVNOST],$H$8) -> 0 | I54: =IFERROR(AVERAGEIFS(podaci[POTROŠNJA PO KILOMETRU],podaci[DATUM],G54,podaci[AKTIVNOST],$I$8),NA()) ->  | J54: =IFERROR(AVERAGEIFS(podaci[lp/MILJA],podaci[DATUM],G54,podaci[AKTIVNOST],$J$8),NA()) -> 
F55: 46 | G55: 2012-06-15 | H55: =SUMIFS(podaci[KILOMETRI],podaci[DATUM],G55,podaci[AKTIVNOST],$H$8) -> 0 | I55: =IFERROR(AVERAGEIFS(podaci[POTROŠNJA PO KILOMETRU],podaci[DATUM],G55,podaci[AKTIVNOST],$I$8),NA()) ->  | J55: =IFERROR(AVERAGEIFS(podaci[lp/MILJA],podaci[DATUM],G55,podaci[AKTIVNOST],$J$8),NA()) -> 
F56: 47 | G56: 2012-06-16 | H56: =SUMIFS(podaci[KILOMETRI],podaci[DATUM],G56,podaci[AKTIVNOST],$H$8) -> 0 | I56: =IFERROR(AVERAGEIFS(podaci[POTROŠNJA PO KILOMETRU],podaci[DATUM],G56,podaci[AKTIVNOST],$I$8),NA()) ->  | J56: =IFERROR(AVERAGEIFS(podaci[lp/MILJA],podaci[DATUM],G56,podaci[AKTIVNOST],$J$8),NA()) -> 
F57: 48 | G57: 2012-06-17 | H57: =SUMIFS(podaci[KILOMETRI],podaci[DATUM],G57,podaci[AKTIVNOST],$H$8) -> 0 | I57: =IFERROR(AVERAGEIFS(podaci[POTROŠNJA PO KILOMETRU],podaci[DATUM],G57,podaci[AKTIVNOST],$I$8),NA()) ->  | J57: =IFERROR(AVERAGEIFS(podaci[lp/MILJA],podaci[DATUM],G57,podaci[AKTIVNOST],$J$8),NA()) -> 
F58: 49 | G58: 2012-06-18 | H58: =SUMIFS(podaci[KILOMETRI],podaci[DATUM],G58,podaci[AKTIVNOST],$H$8) -> 0 | I58: =IFERROR(AVERAGEIFS(podaci[POTROŠNJA PO KILOMETRU],podaci[DATUM],G58,podaci[AKTIVNOST],$I$8),NA()) ->  | J58: =IFERROR(AVERAGEIFS(podaci[lp/MILJA],podaci[DATUM],G58,podaci[AKTIVNOST],$J$8),NA()) -> 
F59: 50 | G59: 2012-06-19 | H59: =SUMIFS(podaci[KILOMETRI],podaci[DATUM],G59,podaci[AKTIVNOST],$H$8) -> 0 | I59: =IFERROR(AVERAGEIFS(podaci[POTROŠNJA PO KILOMETRU],podaci[DATUM],G59,podaci[AKTIVNOST],$I$8),NA()) ->  | J59: =IFERROR(AVERAGEIFS(podaci[lp/MILJA],podaci[DATUM],G59,podaci[AKTIVNOST],$J$8),NA()) -> 
F60: 51 | G60: 2012-06-20 | H60: =SUMIFS(podaci[KILOMETRI],podaci[DATUM],G60,podaci[AKTIVNOST],$H$8) -> 0 | I60: =IFERROR(AVERAGEIFS(podaci[POTROŠNJA PO KILOMETRU],podaci[DATUM],G60,podaci[AKTIVNOST],$I$8),NA()) ->  | J60: =IFERROR(AVERAGEIFS(podaci[lp/MILJA],podaci[DATUM],G60,podaci[AKTIVNOST],$J$8),NA()) -> 
F61: 52 | G61: 2012-06-21 | H61: =SUMIFS(podaci[KILOMETRI],podaci[DATUM],G61,podaci[AKTIVNOST],$H$8) -> 0 | I61: =IFERROR(AVERAGEIFS(podaci[POTROŠNJA PO KILOMETRU],podaci[DATUM],G61,podaci[AKTIVNOST],$I$8),NA()) ->  | J61: =IFERROR(AVERAGEIFS(podaci[lp/MILJA],podaci[DATUM],G61,podaci[AKTIVNOST],$J$8),NA()) -> 
F62: 53 | G62: 2012-06-22 | H62: =SUMIFS(podaci[KILOMETRI],podaci[DATUM],G62,podaci[AKTIVNOST],$H$8) -> 0 | I62: =IFERROR(AVERAGEIFS(podaci[POTROŠNJA PO KILOMETRU],podaci[DATUM],G62,podaci[AKTIVNOST],$I$8),NA()) ->  | J62: =IFERROR(AVERAGEIFS(podaci[lp/MILJA],podaci[DATUM],G62,podaci[AKTIVNOST],$J$8),NA()) -> 
F63: 54 | G63: 2012-06-23 | H63: =SUMIFS(podaci[KILOMETRI],podaci[DATUM],G63,podaci[AKTIVNOST],$H$8) -> 0 | I63: =IFERROR(AVERAGEIFS(podaci[POTROŠNJA PO KILOMETRU],podaci[DATUM],G63,podaci[AKTIVNOST],$I$8),NA()) ->  | J63: =IFERROR(AVERAGEIFS(podaci[lp/MILJA],podaci[DATUM],G63,podaci[AKTIVNOST],$J$8),NA()) -> 
F64: 55 | G64: 2012-06-24 | H64: =SUMIFS(podaci[KILOMETRI],podaci[DATUM],G64,podaci[AKTIVNOST],$H$8) -> 0 | I64: =IFERROR(AVERAGEIFS(podaci[POTROŠNJA PO KILOMETRU],podaci[DATUM],G64,podaci[AKTIVNOST],$I$8),NA()) ->  | J64: =IFERROR(AVERAGEIFS(podaci[lp/MILJA],podaci[DATUM],G64,podaci[AKTIVNOST],$J$8),NA()) -> 
F65: 56 | G65: 2012-06-25 | H65: =SUMIFS(podaci[KILOMETRI],podaci[DATUM],G65,podaci[AKTIVNOST],$H$8) -> 0 | I65: =IFERROR(AVERAGEIFS(podaci[POTROŠNJA PO KILOMETRU],podaci[DATUM],G65,podaci[AKTIVNOST],$I$8),NA()) ->  | J65: =IFERROR(AVERAGEIFS(podaci[lp/MILJA],podaci[DATUM],G65,podaci[AKTIVNOST],$J$8),NA()) -> 
F66: 57 | G66: 2012-06-26 | H66: =SUMIFS(podaci[KILOMETRI],podaci[DATUM],G66,podaci[AKTIVNOST],$H$8) -> 0 | I66: =IFERROR(AVERAGEIFS(podaci[POTROŠNJA PO KILOMETRU],podaci[DATUM],G66,podaci[AKTIVNOST],$I$8),NA()) ->  | J66: =IFERROR(AVERAGEIFS(podaci[lp/MILJA],podaci[DATUM],G66,podaci[AKTIVNOST],$J$8),NA()) -> 
F67: 58 | G67: 2012-06-27 | H67: =SUMIFS(podaci[KILOMETRI],podaci[DATUM],G67,podaci[AKTIVNOST],$H$8) -> 0 | I67: =IFERROR(AVERAGEIFS(podaci[POTROŠNJA PO KILOMETRU],podaci[DATUM],G67,podaci[AKTIVNOST],$I$8),NA()) ->  | J67: =IFERROR(AVERAGEIFS(podaci[lp/MILJA],podaci[DATUM],G67,podaci[AKTIVNOST],$J$8),NA()) -> 
F68: 59 | G68: 2012-06-28 | H68: =SUMIFS(podaci[KILOMETRI],podaci[DATUM],G68,podaci[AKTIVNOST],$H$8) -> 0 | I68: =IFERROR(AVERAGEIFS(podaci[POTROŠNJA PO KILOMETRU],podaci[DATUM],G68,podaci[AKTIVNOST],$I$8),NA()) ->  | J68: =IFERROR(AVERAGEIFS(podaci[lp/MILJA],podaci[DATUM],G68,podaci[AKTIVNOST],$J$8),NA()) -> 
F69: 60 | G69: 2012-06-29 | H69: =SUMIFS(podaci[KILOMETRI],podaci[DATUM],G69,podaci[AKTIVNOST],$H$8) -> 0 | I69: =IFERROR(AVERAGEIFS(podaci[POTROŠNJA PO KILOMETRU],podaci[DATUM],G69,podaci[AKTIVNOST],$I$8),NA()) ->  | J69: =IFERROR(AVERAGEIFS(podaci[lp/MILJA],podaci[DATUM],G69,podaci[AKTIVNOST],$J$8),NA()) -> 
